[Event "*** Titled Tuesday 3|2 Blitz (Late)"]
[Site "Chess.com"]
[Date "2016.12.06"]
[Round "5"]
[White "chessking2151"]
[Black "Genghis_K"]
[Result "0-1"]
[WhiteElo "2364"]
[BlackElo "2683"]
[TimeControl "180+2"]
[EndTime "17:58:45 PST"]
[Termination "Genghis_K won by resignation"]

1. e4 {[%clk 0:03:02]} 1... e5 {[%clk 0:02:55.4]} 2. Nf3 {[%clk 0:03:02.8]} 2...
Nc6 {[%clk 0:02:56.5]} 3. Bb5 {[%clk 0:03:03.6]} 3... Nf6 {[%clk 0:02:58]} 4. d3
{[%clk 0:03:03.6]} 4... d6 {[%clk 0:02:58.6]} 5. c3 {[%clk 0:03:00.8]} 5... Be7
{[%clk 0:03:00]} 6. O-O {[%clk 0:03:01]} 6... O-O {[%clk 0:03:01.5]} 7. h3
{[%clk 0:02:59.7]} 7... Re8 {[%clk 0:02:47.8]} 8. Be3 {[%clk 0:02:59.4]} 8...
Bf8 {[%clk 0:02:46.1]} 9. Qe2 {[%clk 0:02:52.6]} 9... d5 {[%clk 0:02:44.3]} 10.
Rd1 {[%clk 0:02:45.4]} 10... Bd7 {[%clk 0:02:41.6]} 11. Bg5 {[%clk 0:02:43.8]}
11... h6 {[%clk 0:02:39]} 12. Bxf6 {[%clk 0:02:41.4]} 12... Qxf6 {[%clk
0:02:40.9]} 13. exd5 {[%clk 0:02:30.5]} 13... Nd4 {[%clk 0:02:42]} 14. cxd4
{[%clk 0:02:21.3]} 14... exd4 {[%clk 0:02:43.1]} 15. Qc2 {[%clk 0:02:22.5]}
15... Bxb5 {[%clk 0:02:43.9]} 16. Nbd2 {[%clk 0:02:19.1]} 16... Qf5 {[%clk
0:02:40.2]} 17. Ne4 {[%clk 0:02:18.2]} 17... Qxd5 {[%clk 0:02:33.2]} 18. Qxc7
{[%clk 0:02:14.1]} 18... Rac8 {[%clk 0:02:28.7]} 19. Qg3 {[%clk 0:02:14.7]}
19... Re6 {[%clk 0:02:28.2]} 20. Qf4 {[%clk 0:01:21.5]} 20... Rc2 {[%clk
0:02:13.6]} 21. Rac1 {[%clk 0:01:12.9]} 21... Rec6 {[%clk 0:02:04.4]} 22. Rxc2
{[%clk 0:00:44.9]} 22... Rxc2 {[%clk 0:02:06.3]} 23. Rd2 {[%clk 0:00:34.1]}
23... Rc1+ {[%clk 0:01:50]} 24. Kh2 {[%clk 0:00:33.1]} 24... f5 {[%clk
0:01:51.3]} 25. Ng3 {[%clk 0:00:26.3]} 25... Bd6 {[%clk 0:01:52]} 26. Qxd4
{[%clk 0:00:24.9]} 26... Qxd4 {[%clk 0:01:42.3]} 27. Nxd4 {[%clk 0:00:25.7]}
27... Bf4 {[%clk 0:01:43.7]} 28. Re2 {[%clk 0:00:18.5]} 28... Bxd3 {[%clk
0:01:44.4]} 29. Re8+ {[%clk 0:00:17.6]} 29... Kf7 {[%clk 0:01:39.3]} 30. Ra8
{[%clk 0:00:17.4]} 30... a6 {[%clk 0:01:39.9]} 31. Ra7 {[%clk 0:00:17.3]} 31...
Rc7 {[%clk 0:01:36.9]} 32. Kg1 {[%clk 0:00:15.7]} 32... Be5 {[%clk 0:01:36.9]}
33. Nf3 {[%clk 0:00:15.7]} 33... Bxb2 {[%clk 0:01:32.1]} 34. Nh5 {[%clk
0:00:16.7]} 34... Be4 {[%clk 0:01:31.2]} 35. Nd2 {[%clk 0:00:17]} 35... Bd5
{[%clk 0:01:29.9]} 36. Kh2 {[%clk 0:00:14.9]} 36... Be5+ {[%clk 0:01:29.3]} 37.
f4 {[%clk 0:00:16.1]} 37... Bc3 {[%clk 0:01:29.7]} 38. Nf1 {[%clk 0:00:15.7]}
38... Bd4 {[%clk 0:01:29.3]} 39. Ra8 {[%clk 0:00:16.6]} 39... Rc2 {[%clk
0:01:30.6]} 40. Rd8 {[%clk 0:00:04.8]} 40... Rxg2+ {[%clk 0:01:27.8]} 41. Kh1
{[%clk 0:00:05.6]} 41... Bc6 {[%clk 0:01:29.3]} 42. Rxd4 {[%clk 0:00:04.7]}
42... Rd2+ {[%clk 0:01:30.6]} 0-1

[Event "*** Titled Tuesday 3|2 Blitz (Late)"]
[Site "Chess.com"]
[Date "2016.12.06"]
[Round "5"]
[White "LPSupi"]
[Black "Fandorine"]
[Result "1-0"]
[WhiteElo "2602"]
[BlackElo "2600"]
[TimeControl "180+2"]
[EndTime "17:58:52 PST"]
[Termination "LPSupi won by resignation"]

1. d4 {[%clk 0:02:59.2]} 1... Nf6 {[%clk 0:02:58.3]} 2. Nf3 {[%clk 0:02:59.4]}
2... g6 {[%clk 0:02:59.6]} 3. c4 {[%clk 0:03:00.7]} 3... Bg7 {[%clk 0:02:59]} 4.
g3 {[%clk 0:03:02.3]} 4... O-O {[%clk 0:02:58.9]} 5. Bg2 {[%clk 0:03:04]} 5...
d6 {[%clk 0:02:57.5]} 6. O-O {[%clk 0:03:05.2]} 6... c5 {[%clk 0:02:55]} 7. dxc5
{[%clk 0:03:05.1]} 7... dxc5 {[%clk 0:02:56]} 8. Nc3 {[%clk 0:03:06.7]} 8... Nc6
{[%clk 0:02:56.5]} 9. Be3 {[%clk 0:03:08]} 9... Be6 {[%clk 0:02:55.6]} 10. Bxc5
{[%clk 0:03:00.2]} 10... Qa5 {[%clk 0:02:47.7]} 11. Be3 {[%clk 0:02:46.9]} 11...
Bxc4 {[%clk 0:02:43.8]} 12. Nd4 {[%clk 0:02:23.6]} 12... Ng4 {[%clk 0:02:38.6]}
13. Nxc6 {[%clk 0:02:12.5]} 13... bxc6 {[%clk 0:02:38.1]} 14. Bf4 {[%clk
0:02:06.6]} 14... Bxc3 {[%clk 0:01:35.1]} 15. bxc3 {[%clk 0:02:06.1]} 15... Rfd8
{[%clk 0:01:36.6]} 16. Qc2 {[%clk 0:01:56]} 16... e5 {[%clk 0:01:36.1]} 17. Bg5
{[%clk 0:01:55]} 17... f6 {[%clk 0:01:36.8]} 18. Bc1 {[%clk 0:01:44.8]} 18...
Qa6 {[%clk 0:01:35.1]} 19. h3 {[%clk 0:01:30.9]} 19... Bxe2 {[%clk 0:01:28.2]}
20. hxg4 {[%clk 0:01:31]} 20... Bxg4 {[%clk 0:01:28]} 21. Bh6 {[%clk 0:01:26.8]}
21... Qc4 {[%clk 0:01:27]} 22. Rae1 {[%clk 0:01:17]} 22... Bf5 {[%clk
0:01:04.3]} 23. Be4 {[%clk 0:01:15.5]} 23... Bh3 {[%clk 0:01:04.2]} 24. Bxg6
{[%clk 0:01:14.1]} 24... Qg4 {[%clk 0:00:43.1]} 25. Bxh7+ {[%clk 0:01:09.8]}
25... Kh8 {[%clk 0:00:44.2]} 26. Be4 {[%clk 0:01:01.1]} 26... f5 {[%clk
0:00:40.6]} 27. Bg2 {[%clk 0:01:01.2]} 27... e4 {[%clk 0:00:37.7]} 28. Qe2
{[%clk 0:00:55.1]} 28... Qxe2 {[%clk 0:00:34.9]} 29. Rxe2 {[%clk 0:00:55.4]}
29... Bg4 {[%clk 0:00:36.8]} 30. f3 {[%clk 0:00:56.7]} 30... exf3 {[%clk
0:00:38.2]} 31. Bxf3 {[%clk 0:00:58]} 31... Kh7 {[%clk 0:00:40.1]} 32. Bf4
{[%clk 0:00:57.8]} 32... Kg6 {[%clk 0:00:39.3]} 33. Re6+ {[%clk 0:00:58.2]}
33... Kf7 {[%clk 0:00:40.4]} 34. Rxc6 {[%clk 0:00:59.2]} 34... Bxf3 {[%clk
0:00:41.9]} 35. Rxf3 {[%clk 0:00:59.6]} 35... Rd1+ {[%clk 0:00:41.9]} 36. Kg2
{[%clk 0:01:00.8]} 36... Re8 {[%clk 0:00:43.5]} 37. Be3 {[%clk 0:00:59.1]} 37...
Kg8 {[%clk 0:00:44.4]} 38. Bf2 {[%clk 0:01:00]} 38... Rd5 {[%clk 0:00:44.2]} 39.
Rc5 {[%clk 0:00:59.9]} 39... Rxc5 {[%clk 0:00:44.1]} 40. Bxc5 {[%clk 0:01:01.1]}
40... Re5 {[%clk 0:00:44.5]} 1-0

[Event "*** Titled Tuesday 3|2 Blitz (Late)"]
[Site "Chess.com"]
[Date "2016.12.06"]
[Round "5"]
[White "jposthuma"]
[Black "Rating-Schmating"]
[Result "1/2-1/2"]
[WhiteElo "2196"]
[BlackElo "2239"]
[TimeControl "180+2"]
[EndTime "17:58:52 PST"]
[Termination "Game drawn - insufficient material"]

1. d4 {[%clk 0:03:02]} 1... Nf6 {[%clk 0:03:00.7]} 2. c4 {[%clk 0:03:03.3]} 2...
e6 {[%clk 0:03:00.2]} 3. g3 {[%clk 0:03:04.3]} 3... d5 {[%clk 0:02:56.9]} 4. Nf3
{[%clk 0:03:04.7]} 4... c5 {[%clk 0:02:54.9]} 5. cxd5 {[%clk 0:03:05.7]} 5...
exd5 {[%clk 0:02:51.9]} 6. Bg2 {[%clk 0:03:07.2]} 6... cxd4 {[%clk 0:02:52.8]}
7. Nxd4 {[%clk 0:03:08.1]} 7... Nc6 {[%clk 0:02:54.1]} 8. O-O {[%clk 0:03:09.4]}
8... Bc5 {[%clk 0:02:53.8]} 9. Nb3 {[%clk 0:03:10.8]} 9... Bb6 {[%clk
0:02:53.3]} 10. Nc3 {[%clk 0:03:12.1]} 10... Be6 {[%clk 0:02:54.1]} 11. Bg5
{[%clk 0:03:12.6]} 11... Ne7 {[%clk 0:02:51.9]} 12. Bxf6 {[%clk 0:03:11.6]}
12... gxf6 {[%clk 0:02:52.8]} 13. Nb5 {[%clk 0:03:09.4]} 13... a6 {[%clk
0:02:51.7]} 14. N5d4 {[%clk 0:03:10.7]} 14... Qd7 {[%clk 0:02:52.2]} 15. Rc1
{[%clk 0:03:07]} 15... Nc6 {[%clk 0:02:53]} 16. Nc5 {[%clk 0:03:05.4]} 16... Qe7
{[%clk 0:02:48]} 17. Nxc6 {[%clk 0:02:25.5]} 17... bxc6 {[%clk 0:02:47]} 18. Na4
{[%clk 0:02:27]} 18... Qb7 {[%clk 0:02:41.3]} 19. Qb3 {[%clk 0:02:24.4]} 19...
Rb8 {[%clk 0:02:42.2]} 20. Nxb6 {[%clk 0:01:49.4]} 20... Qxb6 {[%clk 0:02:41.4]}
21. Qxb6 {[%clk 0:01:48.1]} 21... Rxb6 {[%clk 0:02:42.4]} 22. b3 {[%clk
0:01:48.3]} 22... Ke7 {[%clk 0:02:42.6]} 23. Rc5 {[%clk 0:01:48.6]} 23... Rc8
{[%clk 0:02:42.9]} 24. Rfc1 {[%clk 0:01:49.8]} 24... Kd6 {[%clk 0:02:44.4]} 25.
e4 {[%clk 0:01:42.6]} 25... Rb5 {[%clk 0:02:32.5]} 26. Rxb5 {[%clk 0:00:54.4]}
26... axb5 {[%clk 0:02:30.9]} 27. exd5 {[%clk 0:00:50.1]} 27... Bxd5 {[%clk
0:02:31.8]} 28. Bxd5 {[%clk 0:00:42.7]} 28... Kxd5 {[%clk 0:02:33]} 29. Kf1
{[%clk 0:00:43.9]} 29... Ra8 {[%clk 0:02:34.2]} 30. Rc2 {[%clk 0:00:44.6]} 30...
c5 {[%clk 0:02:35.3]} 31. Ke2 {[%clk 0:00:44.9]} 31... Kd4 {[%clk 0:02:35.5]}
32. Kd2 {[%clk 0:00:39]} 32... c4 {[%clk 0:02:33.8]} 33. bxc4 {[%clk 0:00:17.4]}
33... bxc4 {[%clk 0:02:34.5]} 34. Ke2 {[%clk 0:00:17.2]} 34... Ra3 {[%clk
0:02:31.2]} 35. Kd2 {[%clk 0:00:16.7]} 35... f5 {[%clk 0:02:32.4]} 36. Ke2
{[%clk 0:00:17.2]} 36... h5 {[%clk 0:02:33.6]} 37. Kd2 {[%clk 0:00:16.8]} 37...
Rd3+ {[%clk 0:02:34.7]} 38. Ke2 {[%clk 0:00:17.7]} 38... f4 {[%clk 0:02:35.7]}
39. gxf4 {[%clk 0:00:14.7]} 39... Rh3 {[%clk 0:02:36.3]} 40. a4 {[%clk
0:00:06.3]} 40... Ra3 {[%clk 0:02:35.3]} 41. Rd2+ {[%clk 0:00:07.7]} 41... Ke4
{[%clk 0:02:35.2]} 42. Rd7 {[%clk 0:00:07.4]} 42... Ra2+ {[%clk 0:02:35.8]} 43.
Kd1 {[%clk 0:00:06.8]} 43... Rxa4 {[%clk 0:02:33.1]} 44. Rxf7 {[%clk 0:00:06.6]}
44... c3 {[%clk 0:02:29.7]} 45. Re7+ {[%clk 0:00:06.5]} 45... Kd3 {[%clk
0:02:30.1]} 46. Re3+ {[%clk 0:00:07.7]} 46... Kd4 {[%clk 0:02:30.7]} 47. Rh3
{[%clk 0:00:07.9]} 47... Ra1+ {[%clk 0:02:31.2]} 48. Kc2 {[%clk 0:00:08.6]}
48... Ra2+ {[%clk 0:02:32.5]} 49. Kc1 {[%clk 0:00:10.1]} 49... Rxf2 {[%clk
0:02:33.5]} 50. Rxh5 {[%clk 0:00:10.4]} 50... Rxf4 {[%clk 0:02:33.2]} 51. Rh8
{[%clk 0:00:11.4]} 51... Kd3 {[%clk 0:02:32.6]} 52. Rd8+ {[%clk 0:00:12.2]}
52... Ke3 {[%clk 0:02:31.2]} 53. Re8+ {[%clk 0:00:12.3]} 53... Kf3 {[%clk
0:02:24.6]} 54. Kc2 {[%clk 0:00:11.3]} 54... Rc4 {[%clk 0:02:24.9]} 55. Rh8
{[%clk 0:00:10.6]} 55... Kg4 {[%clk 0:02:23.8]} 56. h4 {[%clk 0:00:11.7]} 56...
Rc5 {[%clk 0:02:21.6]} 57. h5 {[%clk 0:00:09.9]} 57... Rxh5 {[%clk 0:02:21.1]}
58. Rxh5 {[%clk 0:00:11.5]} 58... Kxh5 {[%clk 0:02:22.3]} 59. Kxc3 {[%clk
0:00:12.9]} 1/2-1/2

[Event "*** Titled Tuesday 3|2 Blitz (Late)"]
[Site "Chess.com"]
[Date "2016.12.06"]
[Round "5"]
[White "KNVB"]
[Black "DanielNaroditsky"]
[Result "0-1"]
[WhiteElo "2545"]
[BlackElo "2700"]
[TimeControl "180+2"]
[EndTime "17:59:21 PST"]
[Termination "DanielNaroditsky won by resignation"]

1. d4 {[%clk 0:03:02]} 1... Nf6 {[%clk 0:03:00.9]} 2. c4 {[%clk 0:02:59.4]} 2...
d6 {[%clk 0:03:02.4]} 3. f3 {[%clk 0:02:51.2]} 3... c5 {[%clk 0:03:01.3]} 4. d5
{[%clk 0:02:39.3]} 4... b5 {[%clk 0:03:02.4]} 5. cxb5 {[%clk 0:02:28.4]} 5... a6
{[%clk 0:03:02.5]} 6. e4 {[%clk 0:02:24.6]} 6... g6 {[%clk 0:03:02.6]} 7. Nc3
{[%clk 0:02:22.1]} 7... Bg7 {[%clk 0:03:03.9]} 8. a4 {[%clk 0:02:06.4]} 8... O-O
{[%clk 0:03:00.5]} 9. Bc4 {[%clk 0:02:04.4]} 9... Nbd7 {[%clk 0:02:55.4]} 10.
Nge2 {[%clk 0:02:00.5]} 10... Ne5 {[%clk 0:02:52.5]} 11. b3 {[%clk 0:02:01.6]}
11... axb5 {[%clk 0:02:16.9]} 12. Bxb5 {[%clk 0:01:54.1]} 12... Ba6 {[%clk
0:02:17.2]} 13. Bxa6 {[%clk 0:01:23.1]} 13... Rxa6 {[%clk 0:02:19.1]} 14. O-O
{[%clk 0:01:24.5]} 14... Qa8 {[%clk 0:02:08]} 15. Rb1 {[%clk 0:01:15]} 15... Rb8
{[%clk 0:02:08.6]} 16. Nb5 {[%clk 0:01:10.7]} 16... c4 {[%clk 0:01:54.4]} 17.
Be3 {[%clk 0:01:10.5]} 17... Rc8 {[%clk 0:01:55.8]} 18. Nec3 {[%clk 0:00:43.5]}
18... cxb3 {[%clk 0:01:57.2]} 19. Qxb3 {[%clk 0:00:45.4]} 19... Nc4 {[%clk
0:01:58.6]} 20. Bc1 {[%clk 0:00:31.5]} 20... Nd7 {[%clk 0:01:59.8]} 21. Kh1
{[%clk 0:00:22.8]} 21... Ndb6 {[%clk 0:02:00.2]} 22. h3 {[%clk 0:00:08.7]} 22...
h6 {[%clk 0:01:37.5]} 23. Rd1 {[%clk 0:00:07.8]} 23... Nxa4 {[%clk 0:01:36.2]}
24. Nxa4 {[%clk 0:00:09.7]} 24... Rxa4 {[%clk 0:01:37.9]} 25. Bf4 {[%clk
0:00:11]} 25... g5 {[%clk 0:01:26.4]} 26. Bg3 {[%clk 0:00:10.1]} 26... Ra5
{[%clk 0:01:03.3]} 27. Be1 {[%clk 0:00:08]} 27... Ra6 {[%clk 0:00:52]} 28. Nd4
{[%clk 0:00:03.6]} 28... Rb6 {[%clk 0:00:46.2]} 29. Qd3 {[%clk 0:00:02.7]} 29...
Nb2 {[%clk 0:00:42.7]} 30. Rxb2 {[%clk 0:00:04.2]} 30... Rxb2 {[%clk 0:00:43.3]}
31. Nf5 {[%clk 0:00:06]} 31... Rcc2 {[%clk 0:00:26.4]} 32. Rd2 {[%clk 0:00:03]}
32... Rxd2 {[%clk 0:00:23.7]} 33. Bxd2 {[%clk 0:00:04.9]} 33... Qa1+ {[%clk
0:00:21.3]} 34. Kh2 {[%clk 0:00:06]} 34... Be5+ {[%clk 0:00:22.9]} 35. f4 {[%clk
0:00:06.8]} 35... Rxd2 {[%clk 0:00:23.4]} 36. Nxh6+ {[%clk 0:00:05.6]} 36... Kf8
{[%clk 0:00:22.2]} 0-1

[Event "*** Titled Tuesday 3|2 Blitz (Late)"]
[Site "Chess.com"]
[Date "2016.12.06"]
[Round "5"]
[White "silverback96"]
[Black "SwiftyMcBishop"]
[Result "1-0"]
[WhiteElo "2002"]
[BlackElo "2113"]
[TimeControl "180+2"]
[EndTime "17:59:22 PST"]
[Termination "silverback96 won on time"]

1. Nf3 {[%clk 0:03:02]} 1... d5 {[%clk 0:03:00]} 2. g3 {[%clk 0:03:03.3]} 2...
Nf6 {[%clk 0:02:59.7]} 3. Bg2 {[%clk 0:03:04.8]} 3... Nbd7 {[%clk 0:03:00.3]} 4.
c4 {[%clk 0:03:05]} 4... c6 {[%clk 0:03:00.5]} 5. d4 {[%clk 0:03:05.7]} 5...
dxc4 {[%clk 0:03:00.3]} 6. a4 {[%clk 0:03:03.3]} 6... e6 {[%clk 0:02:59.4]} 7.
O-O {[%clk 0:03:03.8]} 7... Bb4 {[%clk 0:03:00.8]} 8. Nbd2 {[%clk 0:03:03.7]}
8... c3 {[%clk 0:02:57]} 9. bxc3 {[%clk 0:02:59.2]} 9... Bxc3 {[%clk 0:02:58.9]}
10. Ba3 {[%clk 0:03:01.1]} 10... Bxa1 {[%clk 0:02:48.7]} 11. Qxa1 {[%clk
0:03:03]} 11... c5 {[%clk 0:02:50.1]} 12. dxc5 {[%clk 0:02:59.1]} 12... O-O
{[%clk 0:02:51]} 13. c6 {[%clk 0:03:00.2]} 13... bxc6 {[%clk 0:02:52.1]} 14.
Bxf8 {[%clk 0:03:01.8]} 14... Nxf8 {[%clk 0:02:35.8]} 15. Nd4 {[%clk 0:02:59.2]}
15... Bb7 {[%clk 0:02:32.4]} 16. N2b3 {[%clk 0:02:53.9]} 16... Nd5 {[%clk
0:02:15.6]} 17. Nc5 {[%clk 0:02:52.5]} 17... Qe7 {[%clk 0:02:13.6]} 18. Rc1
{[%clk 0:02:51]} 18... Rc8 {[%clk 0:02:07.5]} 19. a5 {[%clk 0:02:50.4]} 19...
Ba8 {[%clk 0:02:08.2]} 20. a6 {[%clk 0:02:05.8]} 20... Nd7 {[%clk 0:02:05.1]}
21. Nxd7 {[%clk 0:02:06.8]} 21... Qxd7 {[%clk 0:02:07]} 22. Nb3 {[%clk 0:02:05]}
22... Qd6 {[%clk 0:01:52.9]} 23. Nc5 {[%clk 0:02:05.3]} 23... Rb8 {[%clk
0:01:43.2]} 24. Qd4 {[%clk 0:01:42.8]} 24... Rb4 {[%clk 0:01:27.3]} 25. Qd2
{[%clk 0:01:26.7]} 25... Qb8 {[%clk 0:01:18.8]} 26. Bxd5 {[%clk 0:01:17.5]}
26... exd5 {[%clk 0:00:54.3]} 27. h4 {[%clk 0:00:48.5]} 27... Rb2 {[%clk
0:00:39.7]} 28. Qe3 {[%clk 0:00:46.1]} 28... Qd8 {[%clk 0:00:06.6]} 29. h5
{[%clk 0:00:41.4]} 29... Rb5 {[%clk 0:00:06.8]} 30. h6 {[%clk 0:00:37]} 30...
Qf8 {[%clk 0:00:05]} 31. Qg5 {[%clk 0:00:35]} 31... f6 {[%clk 0:00:04.7]} 32.
Qg4 {[%clk 0:00:32.7]} 32... g6 {[%clk 0:00:04.1]} 33. Qe6+ {[%clk 0:00:31.7]}
33... Kh8 {[%clk 0:00:05.3]} 34. Nd7 {[%clk 0:00:32.8]} 34... Qd8 {[%clk
0:00:03.3]} 35. Qf7 {[%clk 0:00:29.2]} 1-0

[Event "*** Titled Tuesday 3|2 Blitz (Late)"]
[Site "Chess.com"]
[Date "2016.12.06"]
[Round "5"]
[White "spirals5"]
[Black "visa"]
[Result "1-0"]
[WhiteElo "2291"]
[BlackElo "2146"]
[TimeControl "180+2"]
[EndTime "17:59:34 PST"]
[Termination "spirals5 won on time"]

1. e4 {[%clk 0:03:01.9]} 1... d6 {[%clk 0:03:00.6]} 2. d4 {[%clk 0:03:00.8]}
2... Nf6 {[%clk 0:03:02]} 3. Nc3 {[%clk 0:03:01.3]} 3... Nbd7 {[%clk 0:03:03.5]}
4. Nf3 {[%clk 0:03:01.2]} 4... e5 {[%clk 0:03:04.2]} 5. d5 {[%clk 0:03:00]} 5...
c6 {[%clk 0:03:02]} 6. dxc6 {[%clk 0:03:00.4]} 6... bxc6 {[%clk 0:03:02.4]} 7.
Bd3 {[%clk 0:02:56.3]} 7... Be7 {[%clk 0:02:59.5]} 8. O-O {[%clk 0:02:57]} 8...
O-O {[%clk 0:02:59.9]} 9. h3 {[%clk 0:02:57.8]} 9... Rb8 {[%clk 0:03:00.1]} 10.
Rb1 {[%clk 0:02:58.4]} 10... Nc5 {[%clk 0:02:59.1]} 11. Be3 {[%clk 0:02:59]}
11... Qa5 {[%clk 0:02:49.8]} 12. a3 {[%clk 0:02:56.4]} 12... Nxd3 {[%clk
0:02:50.1]} 13. cxd3 {[%clk 0:02:56.6]} 13... Ba6 {[%clk 0:02:49]} 14. Re1
{[%clk 0:02:45.6]} 14... Rfe8 {[%clk 0:02:07.7]} 15. b4 {[%clk 0:02:44.7]} 15...
Qc7 {[%clk 0:01:44.5]} 16. Rc1 {[%clk 0:02:45]} 16... Qb7 {[%clk 0:01:39.2]} 17.
d4 {[%clk 0:02:42]} 17... Bd8 {[%clk 0:01:34.8]} 18. dxe5 {[%clk 0:02:41.1]}
18... dxe5 {[%clk 0:01:35.3]} 19. Bc5 {[%clk 0:02:14.4]} 19... Bb6 {[%clk
0:01:14.4]} 20. Bxb6 {[%clk 0:02:12.3]} 20... axb6 {[%clk 0:01:12.9]} 21. Qd2
{[%clk 0:02:06]} 21... Rbd8 {[%clk 0:01:12.6]} 22. Qg5 {[%clk 0:02:06.1]} 22...
h6 {[%clk 0:01:08.4]} 23. Qh4 {[%clk 0:01:54.3]} 23... Rd3 {[%clk 0:01:01.3]}
24. Red1 {[%clk 0:01:46.2]} 24... Qd7 {[%clk 0:00:58.3]} 25. Ne1 {[%clk
0:01:32.6]} 25... Rd4 {[%clk 0:00:53.6]} 26. Nc2 {[%clk 0:01:25.8]} 26... Rd2
{[%clk 0:00:48.8]} 27. Ne3 {[%clk 0:01:24.4]} 27... Rd8 {[%clk 0:00:47.7]} 28.
Rxd2 {[%clk 0:01:04.8]} 28... Qxd2 {[%clk 0:00:45.1]} 29. Rd1 {[%clk 0:01:05.2]}
29... Qxc3 {[%clk 0:00:44.8]} 30. Rxd8+ {[%clk 0:01:04.8]} 30... Kh7 {[%clk
0:00:45]} 31. Kh2 {[%clk 0:00:46.1]} 31... Qxa3 {[%clk 0:00:41]} 32. Ng4 {[%clk
0:00:37.2]} 32... Nxe4 {[%clk 0:00:27.9]} 33. Nxe5 {[%clk 0:00:33]} 33... Qxb4
{[%clk 0:00:14.6]} 34. f3 {[%clk 0:00:22.4]} 34... f6 {[%clk 0:00:06.7]} 35. Nf7
{[%clk 0:00:15.2]} 35... Bc4 {[%clk 0:00:06.9]} 36. Qxe4+ {[%clk 0:00:15.1]}
36... g6 {[%clk 0:00:08]} 37. Rd7 {[%clk 0:00:13.7]} 37... f5 {[%clk 0:00:05.8]}
38. Qe5 {[%clk 0:00:13.3]} 1-0

[Event "*** Titled Tuesday 3|2 Blitz (Late)"]
[Site "Chess.com"]
[Date "2016.12.06"]
[Round "5"]
[White "LonesomeGeorge1"]
[Black "stalyansky"]
[Result "0-1"]
[WhiteElo "2174"]
[BlackElo "2138"]
[TimeControl "180+2"]
[EndTime "17:59:43 PST"]
[Termination "stalyansky won on time"]

1. e4 {[%clk 0:03:02]} 1... e5 {[%clk 0:03:00.5]} 2. Nf3 {[%clk 0:03:02.7]} 2...
Nc6 {[%clk 0:03:01.7]} 3. Bb5 {[%clk 0:03:03.4]} 3... a6 {[%clk 0:03:02.7]} 4.
Ba4 {[%clk 0:03:04.3]} 4... d6 {[%clk 0:03:04]} 5. O-O {[%clk 0:03:04]} 5... Bd7
{[%clk 0:03:05.6]} 6. c3 {[%clk 0:03:02.6]} 6... g6 {[%clk 0:03:06.6]} 7. d4
{[%clk 0:03:00.1]} 7... Bg7 {[%clk 0:03:07.8]} 8. d5 {[%clk 0:03:00.4]} 8...
Nce7 {[%clk 0:03:08.3]} 9. Bc2 {[%clk 0:03:01.5]} 9... h6 {[%clk 0:03:00.9]} 10.
c4 {[%clk 0:03:00.2]} 10... f5 {[%clk 0:03:01.3]} 11. Nc3 {[%clk 0:02:52.6]}
11... Nf6 {[%clk 0:02:59.3]} 12. exf5 {[%clk 0:02:45.7]} 12... gxf5 {[%clk
0:02:59.6]} 13. Nh4 {[%clk 0:02:45.5]} 13... O-O {[%clk 0:02:55.1]} 14. f4
{[%clk 0:02:06.7]} 14... e4 {[%clk 0:02:53.6]} 15. Be3 {[%clk 0:02:04]} 15...
Ng4 {[%clk 0:02:48.4]} 16. Bd4 {[%clk 0:02:02]} 16... c5 {[%clk 0:02:08.9]} 17.
Bxg7 {[%clk 0:01:59.1]} 17... Kxg7 {[%clk 0:02:08.2]} 18. g3 {[%clk 0:01:52.7]}
18... Ne3 {[%clk 0:02:00]} 19. Qd2 {[%clk 0:01:51.2]} 19... Nxf1 {[%clk
0:02:00]} 20. Rxf1 {[%clk 0:01:53.1]} 20... Ng6 {[%clk 0:01:51.4]} 21. Nxg6
{[%clk 0:01:44.9]} 21... Kxg6 {[%clk 0:01:51]} 22. g4 {[%clk 0:01:46.8]} 22...
Qf6 {[%clk 0:01:18.5]} 23. Kh1 {[%clk 0:01:42.8]} 23... Rae8 {[%clk 0:00:58.3]}
24. Rg1 {[%clk 0:01:22.9]} 24... Kh7 {[%clk 0:00:52.7]} 25. Qg2 {[%clk
0:01:16.2]} 25... Rg8 {[%clk 0:00:45.7]} 26. Qe2 {[%clk 0:01:11.3]} 26... Qh4
{[%clk 0:00:28.2]} 27. b4 {[%clk 0:00:46.1]} 27... cxb4 {[%clk 0:00:22.3]} 28.
Nxe4 {[%clk 0:00:40.9]} 28... fxe4 {[%clk 0:00:20.2]} 29. Bxe4+ {[%clk
0:00:42.8]} 29... Kh8 {[%clk 0:00:18.7]} 30. g5 {[%clk 0:00:37.9]} 30... Qxf4
{[%clk 0:00:15.5]} 31. Qb2+ {[%clk 0:00:37.2]} 31... Re5 {[%clk 0:00:13.6]} 32.
Bg2 {[%clk 0:00:28.2]} 32... Rxg5 {[%clk 0:00:12.7]} 33. Qxb4 {[%clk 0:00:29.5]}
33... Re2 {[%clk 0:00:09.3]} 34. Qxb7 {[%clk 0:00:29.3]} 34... Rexg2 {[%clk
0:00:10]} 35. Qc8+ {[%clk 0:00:16]} 35... Bxc8 {[%clk 0:00:09.1]} 0-1